bitfinex-derivatives/quotes_BNBF0:USTF0_20230831
["timestamp","ask_amount","ask_price","bid_price","bid_amount"]
[1693491002129,0.14643876,223.01,222.72,0.18811819]
[1693491002330,0.14643876,223.01,222.73,0.18811819]
[1693491002628,0.14643876,223.01,222.74,0.18811819]
[1693491002829,0.14643876,223.01,222.7,0.18811819]
[1693491003128,0.14643876,223.01,222.71,0.18811819]
[1693491003329,0.14643876,223.01,222.7,0.18811819]
[1693491003528,0.14643876,223.01,222.71,0.18811819]
[1693491003726,0.14643876,223.01,222.7,0.18811819]
[1693491003927,0.14643876,223.01,222.71,0.18811819]
[1693491004132,0.14643876,223.01,222.7,0.26127144]
[1693491004322,0.14643876,223.01,222.71,0.18811819]
[1693491004628,0.14643876,223.02,222.72,0.18811819]
[1693491004929,0.14643876,223.02,222.73,0.18811819]
[1693491005126,0.14643876,223.02,222.71,0.18811819]
[1693491005628,0.14643876,223.02,222.72,0.18811819]
[1693491005828,0.14643876,223.02,222.69,0.07315325]
[1693491005829,0.14643876,223.02,222.73,0.18811819]
[1693491006129,0.14643876,223.02,222.74,0.18811819]
[1693491006428,0.14643876,223.02,222.75,0.18811819]
[1693491006631,0.14643876,223.02,222.76,0.18811819]
[1693491006828,0.14643876,223.02,222.7,0.07315325]
[1693491007025,0.14643876,223.02,222.71,0.18783097]
[1693491007426,0.14643876,223.03,222.72,0.18783097]
[1693491007630,0.14643876,223.03,222.73,0.18783097]
[1693491007831,0.14643876,223.03,222.74,0.18783097]
[1693491008026,0.14643876,223.03,222.7,0.18783097]
[1693491008225,0.14643876,223.03,222.71,0.18783097]
[1693491008426,0.14643876,223.03,222.7,0.18783097]
[1693491008627,0.14643876,223.02,222.71,0.18783097]
[1693491008829,0.14643876,223.03,222.72,0.18783097]
[1693491009029,0.14643876,223.03,222.73,0.18783097]
[1693491009229,0.14643876,223.03,222.74,0.18783097]
[1693491009429,0.14643876,223.03,222.75,0.18783097]
[1693491009628,0.14643876,223.03,222.7,0.18783097]
[1693491011733,0.14643876,223.03,222.69,0.18783097]
[1693491012033,0.14643876,223.02,222.7,0.18783097]
[1693491012235,0.14643876,223.02,222.67,0.07315325]
[1693491012236,0.14643876,222.97,222.67,0.07315325]
[1693491012527,0.14643876,222.96,222.68,0.18809309]
[1693491012729,0.14643876,222.96,222.63,0.18809309]
[1693491012932,0.14643876,222.96,222.64,0.18809309]
[1693491013234,0.14643876,222.96,222.65,0.18809309]
[1693491013434,0.14643876,222.96,222.62,0.18809309]
[1693491013630,0.14643876,222.96,222.63,0.18809309]
[1693491013834,0.14643876,222.95,222.62,0.18809309]
[1693491014031,0.14643876,222.95,222.63,0.18809309]
[1693491014233,0.14643876,222.96,222.61,0.18809309]
[1693491014435,0.14643876,222.96,222.62,0.18809309]
[1693491014735,0.14643876,222.96,222.63,0.18809309]
[1693491014938,0.14643876,222.95,222.6,0.18809309]
[1693491015235,0.14643876,222.96,222.61,0.18809309]
[1693491015434,0.14643876,222.95,222.6,0.18809309]
[1693491015636,2.44064602,223.07,222.61,0.18809309]
[1693491015637,0.14643876,222.96,222.61,0.18809309]
[1693491015937,0.14643876,222.96,222.62,0.18809309]
[1693491016138,0.14643876,222.96,222.6,0.18809309]
[1693491016339,0.14643876,222.96,222.61,0.18809309]
[1693491016637,0.14643876,222.96,222.62,0.18809309]
[1693491016838,0.14643876,222.96,222.6,0.18809309]
[1693491017040,0.14643876,222.96,222.61,0.18809309]
[1693491017240,0.14643876,222.96,222.59,0.18809309]
[1693491017438,0.14643876,222.96,222.6,0.18809309]
[1693491017741,0.14643876,222.96,222.61,0.18809309]
[1693491017939,0.14643876,222.96,222.59,0.18809309]
[1693491018141,0.14643876,222.96,222.6,0.18809309]
[1693491018341,0.14643876,222.96,222.59,0.18809309]
[1693491018540,0.14643876,222.96,222.6,0.18809309]
[1693491018735,0.14643876,222.96,222.58,0.18809309]
[1693491018941,0.14643876,222.96,222.59,0.18809309]
[1693491019138,0.14643876,222.96,222.58,0.18809309]
[1693491019336,0.14643876,222.96,222.59,0.18809309]
[1693491019541,0.14643876,222.96,222.6,0.18809309]
[1693491019738,0.14643876,222.96,222.61,0.18809309]
[1693491019942,0.14643876,222.96,222.62,0.18809309]
[1693491020143,0.14643876,222.96,222.58,0.18809309]
[1693491020339,0.14643876,222.96,222.59,0.18809309]
[1693491020544,0.14643876,222.96,222.58,0.18809309]
[1693491020738,0.14643876,222.96,222.59,0.18809309]
[1693491020941,0.14643876,222.96,222.6,0.18809309]
[1693491021139,0.14643876,222.96,222.61,0.18809309]
[1693491021540,0.14643876,222.97,222.62,0.18809309]
[1693491021747,0.14643876,222.97,222.57,0.18809309]
[1693491022045,0.14643876,222.97,222.58,0.18809309]
[1693491022239,0.14643876,222.97,222.59,0.18809309]
[1693491022440,0.14643876,222.97,222.6,0.18809309]
[1693491022640,0.14643876,222.97,222.56,0.18809309]
[1693491022842,0.14643876,222.97,222.57,0.18809309]
[1693491023142,0.14643876,222.97,222.58,0.18809309]
[1693491023345,0.14643876,222.97,222.56,0.18809309]
[1693491023545,0.14643876,222.97,222.57,0.18809309]
[1693491023745,0.14643876,222.98,222.56,0.26124634]
[1693491023945,0.14643876,222.98,222.57,0.18809309]
[1693491027352,0.14643876,222.97,222.57,0.18809309]
[1693491027546,0.14643876,222.97,222.56,0.18809309]
[1693491027745,0.14643876,222.97,222.57,0.18809309]
[1693491027950,0.14643876,222.97,222.56,0.18809309]
[1693491028151,0.14643876,222.97,222.57,0.18809309]
[1693491028354,0.14643876,222.97,222.58,0.18809309]
[1693491028550,0.14643876,222.97,222.59,0.18809309]
[1693491028751,0.14643876,222.97,222.6,0.18809309]
[1693491028952,0.14643876,222.96,222.55,0.18809309]
[1693491029153,0.14643876,222.96,222.56,0.18809309]
[1693491029347,0.14643876,222.96,222.57,0.18809309]
[1693491029653,0.14643876,222.96,222.58,0.18809309]
[1693491029846,0.14643876,222.96,222.55,0.18809309]
[1693491030052,0.14643876,222.96,222.59,0.18809309]
[1693491030248,0.14643876,222.92,222.49,0.07315325]
[1693491030458,0.07295689,222.89,222.5,0.188409]
[1693491030654,0.07295689,222.89,222.49,0.188409]
[1693491030854,0.07295689,222.88,222.47,0.188409]
[1693491031048,0.07295689,222.89,222.48,0.188409]
[1693491031356,0.07295689,222.9,222.49,0.188409]
[1693491031557,0.07295689,222.9,222.5,0.188409]
[1693491031757,0.07295689,222.9,222.47,0.188409]
[1693491031954,0.07295689,222.9,222.48,0.188409]
[1693491032256,0.07295689,222.9,222.49,0.188409]
[1693491032448,0.07295689,222.9,222.5,0.188409]
[1693491032754,0.07295689,222.9,222.51,0.188409]
[1693491033054,0.07295689,222.9,222.52,0.188409]
[1693491033254,0.07295689,222.91,222.53,0.188409]
[1693491033447,0.07295689,222.91,222.54,0.188409]
[1693491033651,0.82495891,222.9,222.45,0.188409]
[1693491033854,0.82495891,222.9,222.55,0.188409]
[1693491034053,0.07295689,222.91,222.56,0.188409]
[1693491034254,0.07295689,222.91,222.44,0.188409]
[1693491034456,0.07295689,222.92,222.45,0.188409]
[1693491034654,0.82494413,222.91,222.43,0.188409]
[1693491034955,0.82494413,222.91,222.44,0.188409]
[1693491035252,0.82494413,222.91,222.45,0.188409]
[1693491035448,0.82494413,222.91,222.46,0.188409]
[1693491035653,0.82494413,222.91,222.47,0.188409]
[1693491035855,0.82494413,222.91,222.48,0.188409]
[1693491036055,0.82494413,222.91,222.49,0.188409]
[1693491036250,0.82494413,222.91,222.43,0.188409]
[1693491036451,0.82494413,222.91,222.44,0.188409]
[1693491036655,0.82494413,222.91,222.41,0.07315325]
[1693491036656,0.82494413,222.91,222.42,0.188409]
[1693491036958,0.82494413,222.91,222.43,0.188409]
[1693491037152,0.82494413,222.92,222.42,0.188409]
[1693491037352,0.82494413,222.91,222.43,0.188409]
[1693491037658,0.82494413,222.9,222.44,0.188409]
[1693491037852,0.82494413,222.92,222.42,0.188409]
[1693491038051,0.8249572,222.91,222.43,0.188409]
[1693491038353,0.89791409,222.91,222.44,0.188409]
[1693491038553,0.8249572,222.9,222.4,0.26156225]
[1693491038759,0.8249572,222.9,222.41,0.188409]
[1693491039158,0.8249572,222.89,222.41,0.188409]
[1693491039354,0.8249572,222.9,222.41,0.188409]
[1693491039557,0.82500235,222.89,222.4,0.188409]
[1693491039861,0.82500235,222.88,222.4,0.188409]
[1693491040054,0.82500235,222.9,222.4,0.188409]
[1693491040257,0.82501377,222.89,222.4,0.188409]
[1693491040452,0.07295689,222.91,222.4,0.188409]
[1693491040453,0.07295689,222.86,222.4,0.188409]
[1693491040761,0.82501377,222.85,222.41,0.188409]
[1693491041060,0.82501377,222.85,222.42,0.188409]
[1693491041263,0.82501377,222.85,222.43,0.188409]
[1693491041462,0.82501377,222.85,222.34,0.188409]
[1693491041761,0.82501377,222.85,222.35,0.188409]
[1693491041963,0.82501377,222.85,222.34,0.188409]
[1693491042163,0.82501377,222.85,222.35,0.188409]
[1693491042363,0.82501377,222.85,222.36,0.188409]
[1693491042564,0.82501377,222.85,222.34,0.188409]
[1693491042765,0.82501377,222.85,222.35,0.188409]
[1693491042962,0.82501377,222.85,222.33,0.188409]
[1693491043158,0.82501377,222.85,222.34,0.188409]
[1693491043357,0.82501377,222.85,222.33,0.188409]
[1693491043559,0.82501377,222.85,222.34,0.188409]
[1693491043759,0.82501377,222.85,222.33,0.188409]
[1693491043962,0.82501377,222.85,222.34,0.188409]
[1693491044160,0.82501377,222.85,222.33,0.188409]
[1693491044468,0.82501377,222.85,222.34,0.188409]
[1693491044668,0.82501377,222.85,222.33,0.188409]
[1693491044871,0.89797066,222.86,222.34,0.188409]
[1693491045070,0.82501377,222.85,222.32,0.188409]
[1693491045263,0.82501377,222.85,222.33,0.188409]
[1693491045468,0.89797066,222.85,222.33,0.188409]
[1693491045665,0.89797066,222.84,222.34,0.188409]
[1693491045862,0.82501377,222.83,222.35,0.188409]
[1693491046160,0.82501377,222.83,222.36,0.188409]
[1693491046359,0.82501377,222.83,222.31,0.188409]
[1693491046561,0.82501377,222.83,222.32,0.188409]
[1693491047766,0.82501377,222.84,222.31,0.188409]
[1693491047966,0.82501377,222.83,222.32,0.188409]
[1693491048165,0.89797066,222.84,222.31,0.188409]
[1693491048363,0.82501377,222.83,222.32,0.188409]
[1693491048565,0.82501377,222.83,222.31,0.188409]
[1693491048765,0.82501377,222.83,222.32,0.188409]
[1693491048965,0.82501377,222.83,222.31,0.188409]
[1693491049170,0.82501377,222.83,222.32,0.188409]
[1693491049364,0.82501377,222.83,222.31,0.188409]
[1693491049564,0.82501377,222.83,222.3,0.07315325]
[1693491049565,0.82501377,222.83,222.32,0.188409]
[1693491049763,0.82501377,222.84,222.31,0.188409]
[1693491049961,0.82501377,222.83,222.32,0.188409]
[1693491050162,0.82501377,222.84,222.31,0.188409]
[1693491050867,0.82501377,222.83,222.31,0.188409]
[1693491051168,0.82501377,222.82,222.31,0.188409]
[1693491051363,0.82501377,222.81,222.32,0.188409]
[1693491051569,0.82501377,222.85,222.31,0.188409]
[1693491051770,0.8252192,222.84,222.32,0.188409]
[1693491052068,0.8252192,222.83,222.32,0.188409]
[1693491052269,0.89817609,222.86,222.32,0.188409]
[1693491052468,0.8252192,222.85,222.32,0.188409]
[1693491052670,0.8252192,222.86,222.32,0.188409]
[1693491052870,0.8252192,222.85,222.32,0.26156225]
[1693491053067,0.8252192,222.86,222.33,0.188409]
[1693491053268,0.8252192,222.85,222.33,0.188409]
[1693491053569,0.8252192,222.84,222.33,0.188409]
[1693491053770,0.8252192,222.86,222.33,0.188409]
[1693491053968,0.8252192,222.85,222.33,0.188409]
[1693491054171,0.8252192,222.85,222.32,0.188409]
[1693491054469,0.8252192,222.85,222.31,0.07315325]
[1693491054470,0.8252192,222.85,222.33,0.188409]
[1693491054670,0.8252192,222.85,222.34,0.188409]
[1693491054970,0.89817609,222.85,222.35,0.188409]
[1693491055270,0.8252192,222.84,222.36,0.188409]
[1693491055564,0.07295689,222.86,222.37,0.188409]
[1693491055770,0.07295689,222.86,222.08,0.97537674]
[1693491055771,0.07295689,222.91,222.36,0.07315325]
[1693491055967,0.82501218,222.9,222.37,0.188409]
[1693491056167,0.89796907,222.9,222.37,0.188409]
[1693491056368,0.89796907,222.89,222.37,0.26156225]
[1693491056569,0.82501218,222.88,222.38,0.188409]
[1693491056966,0.82501218,222.89,222.38,0.188409]
[1693491057171,0.82501218,222.88,222.38,0.188409]
[1693491057371,0.82501218,222.89,222.38,0.26156225]
[1693491057572,0.82501218,222.88,222.39,0.188409]
[1693491057869,0.07295689,222.91,222.4,0.188409]
[1693491058072,0.82500398,222.9,222.39,0.188409]
[1693491058373,0.89796087,222.9,222.4,0.188409]
[1693491058571,0.82500398,222.89,222.4,0.188409]
[1693491059572,0.89796087,222.89,222.4,0.26156225]
[1693491059768,0.82500398,222.88,222.41,0.188409]
[1693491060269,0.82500398,222.88,222.41,0.26156225]
[1693491060473,0.07295689,222.9,222.42,0.188409]
[1693491060670,0.82494278,222.89,222.42,0.188409]
[1693491060870,0.07295689,222.9,222.42,0.26156225]
[1693491061072,0.82495073,222.89,222.43,0.188409]
[1693491061574,0.89790762,222.89,222.44,0.188409]
[1693491061774,0.07295689,222.89,222.43,0.188409]
[1693491061975,0.89795154,222.88,222.44,0.188409]
[1693491062170,0.07295689,222.88,222.42,0.188409]
[1693491062372,0.07295689,222.88,222.43,0.188409]
[1693491062571,0.07295689,222.88,222.18,0.97537674]
[1693491062572,0.07295689,222.87,222.44,0.188409]
[1693491062875,0.07295689,222.86,222.45,0.188409]
[1693491063078,0.07295689,222.86,222.46,0.188409]
[1693491063370,0.07295689,222.86,222.47,0.188409]
[1693491063575,0.07295689,222.84,222.44,0.07315325]
[1693491063771,0.07295689,222.84,222.45,0.188409]
[1693491064477,0.07295689,222.83,222.45,0.188409]
[1693491064676,0.07295689,222.79,222.44,0.188409]
[1693491064874,0.07295689,222.77,222.45,0.188409]
[1693491065075,0.07295689,222.78,222.38,0.188409]
[1693491065275,0.07295689,222.78,222.39,0.188409]
[1693491066481,0.07295689,222.78,222.39,0.26156225]
[1693491066674,0.07295689,222.78,222.4,0.188409]
[1693491067079,0.07295689,222.79,222.4,0.188409]
[1693491067278,0.07295689,222.79,222.4,0.26156225]
[1693491067480,0.07295689,222.79,222.41,0.188409]
[1693491067880,0.07295689,222.83,222.44,0.07315325]
[1693491068081,0.07295689,222.84,222.45,0.26156225]
[1693491068383,0.07295689,222.85,222.46,0.26156225]
[1693491068577,0.07295689,222.85,222.47,0.188409]
[1693491068782,0.07295689,222.84,222.47,0.188409]
[1693491071283,0.07295689,222.85,222.47,0.188409]
[1693491071582,0.07295689,222.84,222.47,0.26156225]
[1693491071778,0.07295689,222.84,222.48,0.188409]
[1693491072183,0.07295689,222.85,222.48,0.188409]
[1693491072380,0.07295689,222.84,222.48,0.188409]
[1693491074079,0.07295689,222.85,222.48,0.188409]
[1693491075486,0.07295689,222.84,222.48,0.188409]
[1693491075686,0.07295689,222.85,222.47,0.26156225]
[1693491075984,0.07295689,222.85,222.48,0.188409]
[1693491076381,0.07295689,222.85,222.47,0.188409]
[1693491076587,0.07295689,222.85,222.47,0.26156225]
[1693491076788,0.07295689,222.85,222.48,0.188409]
[1693491078187,0.07295689,222.84,222.47,0.188409]
[1693491078384,0.07295689,222.84,222.48,0.188409]
[1693491078586,0.07295689,222.84,222.46,0.188409]
[1693491078787,0.07295689,222.84,222.47,0.188409]
[1693491079086,0.07295689,222.83,222.48,0.188409]
[1693491079281,0.07295689,222.83,222.45,0.188409]
[1693491079486,0.07295689,222.82,222.46,0.188409]
[1693491079686,0.07295689,222.83,222.45,0.188409]
[1693491079887,0.07295689,222.82,222.45,0.188409]
[1693491080487,0.07295689,222.83,222.45,0.188409]
[1693491081388,0.07295689,222.83,222.45,0.26156225]
[1693491081580,0.07295689,222.84,222.46,0.26156225]
[1693491081782,0.07295689,222.85,222.47,0.188409]
[1693491081982,0.07295689,222.84,222.47,0.188409]
[1693491082582,0.07295689,222.83,222.47,0.188409]
[1693491084088,0.07295689,222.83,222.47,0.26156225]
[1693491084290,0.07295689,222.83,222.48,0.188409]
[1693491085089,0.07295689,222.82,222.47,0.188409]
[1693491085284,0.07295689,222.82,222.48,0.188409]
[1693491085794,0.07295689,222.82,222.48,0.26156225]
[1693491085993,0.07295689,222.82,222.49,0.188409]
[1693491086692,0.07295689,222.82,222.48,0.188409]
[1693491086994,0.07295689,222.82,222.49,0.188409]
[1693491087394,0.07295689,222.82,222.48,0.188409]
[1693491087695,0.07295689,222.82,222.49,0.188409]
[1693491088496,0.07295689,222.81,222.49,0.188409]
[1693491089897,0.07295689,222.82,222.49,0.26156225]
[1693491090197,0.07295689,222.82,222.5,0.188409]
[1693491090497,0.97625841,222.89,222.5,0.188409]
[1693491090498,0.07295689,222.81,222.5,0.188409]
[1693491090697,0.07295689,222.82,222.5,0.26156225]
[1693491090899,0.07295689,222.81,222.51,0.188409]
[1693491092195,0.07295689,222.76,222.51,0.188409]
[1693491092500,0.07295689,222.75,222.44,0.07315325]
[1693491092694,0.07295689,222.75,222.45,0.1887129]
[1693491092897,0.14643876,222.77,222.44,0.1887129]
[1693491092898,0.07295689,222.74,222.44,0.1887129]
[1693491093095,0.07295689,222.75,222.45,0.1887129]
[1693491093303,0.07295689,222.75,222.46,0.1887129]
[1693491093496,0.07295689,222.75,222.47,0.1887129]
[1693491093697,0.07295689,222.75,222.44,0.1887129]
[1693491094096,0.07295689,222.76,222.44,0.1887129]
[1693491095097,0.07295689,222.77,222.44,0.1887129]
[1693491095298,0.07295689,222.77,222.43,0.1887129]
[1693491095499,0.07295689,222.77,222.44,0.1887129]
[1693491095702,0.07295689,222.77,222.43,0.1887129]
[1693491096003,0.07295689,222.77,222.44,0.1887129]
[1693491096803,0.07295689,222.76,222.44,0.1887129]
[1693491097004,0.07295689,222.76,222.43,0.1887129]
[1693491097197,0.07295689,222.76,222.44,0.1887129]
[1693491097402,0.07295689,222.76,222.45,0.1887129]
[1693491097599,0.07295689,222.76,222.46,0.1887129]
[1693491097799,0.07295689,222.76,222.47,0.1887129]
[1693491098105,0.07295689,222.76,222.48,0.1887129]
[1693491098298,0.07295689,222.76,222.49,0.1887129]
[1693491098605,0.07295689,222.76,222.39,0.07315325]
[1693491098806,0.07295689,222.76,222.4,0.18872784]
[1693491100199,0.07295689,222.76,222.41,0.18872784]
[1693491100400,0.07295689,222.76,222.42,0.18872784]
[1693491100601,0.07295689,222.76,222.43,0.18872784]
[1693491100901,0.07295689,222.76,222.44,0.18872784]
[1693491101105,0.07295689,222.76,222.45,0.18872784]
[1693491101305,0.07295689,222.76,222.39,0.18872784]
[1693491101503,0.07295689,222.76,222.4,0.18872784]
[1693491101706,0.07295689,222.76,222.39,0.18872784]
[1693491101907,0.07295689,222.76,222.4,0.18872784]
[1693491102206,0.07295689,222.76,222.41,0.18872784]
[1693491102402,0.07295689,222.76,222.38,0.07315325]
[1693491102403,0.07295689,222.76,222.39,0.18872784]
[1693491102608,0.07295689,222.76,222.4,0.18872784]
[1693491102903,0.07295689,222.76,222.41,0.18872784]
[1693491103107,0.07295689,222.77,222.42,0.18872784]
[1693491103303,0.07295689,222.77,222.43,0.18872784]
[1693491103501,0.07295689,222.76,222.44,0.18872784]
[1693491103705,0.07295689,222.77,222.38,0.18872784]
[1693491103905,0.07295689,222.77,222.39,0.18872784]
[1693491104104,0.07295689,222.77,222.38,0.18872784]
[1693491104303,0.07295689,222.77,222.39,0.18872784]
[1693491104504,0.07295689,222.77,222.4,0.18872784]
[1693491104704,0.07295689,222.77,222.41,0.18872784]
[1693491104909,0.07295689,222.77,222.42,0.18872784]
[1693491105108,0.07295689,222.78,222.43,0.18872784]
[1693491105312,0.07295689,222.79,222.44,0.18872784]
[1693491105507,0.07295689,222.79,222.39,0.18872784]
[1693491106309,0.07295689,222.8,222.39,0.26188109]
[1693491106613,0.07295689,222.8,222.4,0.18872784]
[1693491107003,0.07295689,222.81,222.4,0.26188109]
[1693491107207,0.07295689,222.81,222.41,0.26188109]
[1693491107406,0.07295689,222.81,222.42,0.18872784]
[1693491108409,0.07295689,222.82,222.42,0.26188109]
[1693491108609,0.07295689,222.82,222.43,0.18872784]
[1693491108908,0.07295689,222.86,222.46,0.07315325]
[1693491109205,0.07295689,222.86,222.47,0.18872784]
[1693491110911,0.82516647,222.85,222.47,0.18872784]
[1693491111107,0.07295689,222.8,222.47,0.18872784]
[1693491111311,0.07295689,222.8,222.48,0.18872784]
[1693491111611,0.07295689,222.8,222.49,0.18872784]
[1693491111807,0.07295689,222.8,222.42,0.18872784]
[1693491112014,0.07295689,222.8,222.43,0.18872784]
[1693491112214,0.07295689,222.79,222.42,0.18872784]
[1693491112415,0.07295689,222.79,222.43,0.18872784]
[1693491112716,0.07295689,222.79,222.4,0.07315325]
[1693491112717,0.07295689,222.79,222.44,0.18872784]
[1693491112917,0.07295689,222.79,222.45,0.18872784]
[1693491113115,0.07295689,222.78,222.46,0.18872784]
[1693491113316,0.07295689,222.78,222.47,0.18872784]
[1693491113516,0.07295689,222.78,222.48,0.18872784]
[1693491113817,0.07295689,222.78,222.49,0.18872784]
[1693491114017,0.07295689,222.79,222.41,0.18872784]
[1693491114314,0.07295689,222.79,222.41,0.26188109]
[1693491114519,0.07295689,222.79,222.42,0.18872784]
[1693491116316,0.07295689,222.79,222.42,0.26188109]
[1693491116522,0.07295689,222.79,222.43,0.18872784]
[1693491118822,0.07295689,222.79,222.43,0.26188109]
[1693491119017,0.07295689,222.79,222.44,0.18872784]
[1693491120217,0.07295689,222.79,222.44,0.26188109]
[1693491120524,0.07295689,222.79,222.45,0.18872784]
[1693491120725,0.07295689,222.83,222.48,0.07315325]
[1693491121024,0.07295689,222.83,222.49,0.18872784]
[1693491121416,0.07295689,222.84,222.49,0.18872784]
[1693491122120,0.07295689,222.83,222.49,0.18872784]
[1693491122321,0.07295689,222.83,222.49,0.26188109]
[1693491122521,0.07295689,222.83,222.5,0.18872784]
[1693491122725,0.07295689,222.84,222.5,0.18872784]
[1693491122923,0.07295689,222.84,222.49,0.18872784]
[1693491123123,0.07295689,222.84,222.48,0.07315325]
[1693491123124,0.07295689,222.84,222.5,0.18872784]
[1693491123318,0.07295689,222.84,222.51,0.18872784]
[1693491123534,0.07295689,222.84,222.5,0.18872784]
[1693491123722,0.07295689,222.84,222.51,0.18872784]
[1693491123922,0.07295689,222.84,222.49,0.18872784]
[1693491124123,0.07295689,222.84,222.5,0.18872784]
[1693491124325,0.07295689,222.84,222.49,0.18872784]
[1693491124526,0.07295689,222.84,222.5,0.18872784]
[1693491124826,0.07295689,222.84,222.51,0.18872784]
[1693491125026,0.07295689,222.84,222.52,0.18872784]
[1693491125220,0.07295689,222.84,222.53,0.18872784]
[1693491125418,0.07295689,222.85,222.54,0.18872784]
[1693491125619,0.07295689,222.85,222.55,0.18872784]
[1693491125825,0.07295689,222.85,222.56,0.18872784]
[1693491126023,0.07295689,222.85,222.49,0.18872784]
[1693491126229,0.07295689,222.85,222.5,0.18872784]
[1693491126424,0.07295689,222.85,222.49,0.18872784]
[1693491126628,0.07295689,222.85,222.5,0.18872784]
[1693491126829,0.07295689,222.85,222.49,0.18872784]
[1693491127028,0.07295689,222.85,222.5,0.18872784]
[1693491127224,0.07295689,222.85,222.49,0.18872784]
[1693491127423,0.07295689,222.85,222.5,0.18872784]
[1693491127623,0.07295689,222.85,222.51,0.18872784]
[1693491127826,0.07295689,222.85,222.52,0.18872784]
[1693491128026,0.07295689,222.85,222.53,0.18872784]
[1693491128227,0.07295689,222.85,222.54,0.18872784]
[1693491128423,0.07295689,222.85,222.55,0.18872784]
[1693491128627,0.07295689,222.85,222.56,0.18872784]
[1693491128827,0.07295689,222.85,222.49,0.18872784]
[1693491129028,0.07295689,222.86,222.5,0.18872784]
[1693491129229,0.07295689,222.86,222.49,0.18872784]
[1693491129430,0.07295689,222.86,222.5,0.18872784]
[1693491129629,0.07295689,222.86,222.51,0.18872784]
[1693491129930,0.07295689,222.86,222.52,0.18872784]
[1693491130131,0.07295689,222.86,222.48,0.18872784]
[1693491130333,0.07295689,222.86,222.49,0.18872784]
[1693491130528,0.07295689,222.86,222.5,0.18872784]
[1693491130833,0.07295689,222.86,222.51,0.18872784]
[1693491131029,0.07295689,222.86,222.52,0.18872784]
[1693491131230,0.07295689,222.87,222.48,0.18872784]
[1693491131431,0.07295689,222.87,222.49,0.18872784]
[1693491131628,0.07295689,222.87,222.48,0.18872784]
[1693491131828,0.07295689,222.87,222.49,0.18872784]
[1693491132032,0.07295689,222.87,222.48,0.18872784]
[1693491132232,0.07295689,222.87,222.49,0.18872784]
[1693491132436,0.07295689,222.87,222.5,0.18872784]
[1693491132629,0.07295689,222.87,222.51,0.18872784]
[1693491132932,0.07295689,222.87,222.52,0.18872784]
[1693491133133,0.07295689,222.87,222.48,0.18872784]
[1693491133335,0.07295689,222.87,222.49,0.18872784]
[1693491133533,0.07295689,222.87,222.48,0.18872784]
[1693491133731,0.07295689,222.87,222.49,0.18872784]
[1693491133928,0.07295689,222.87,222.48,0.18872784]
[1693491134132,0.07295689,222.87,222.49,0.18872784]
[1693491134326,0.07295689,222.87,222.47,0.07315325]
[1693491134327,0.07295689,222.87,222.48,0.18872784]
[1693491134529,0.07295689,222.88,222.49,0.18872784]
[1693491136235,0.07295689,222.88,222.49,0.26188109]
[1693491136431,0.07295689,222.88,222.5,0.18872784]
[1693491137530,0.07295689,222.87,222.5,0.18872784]
[1693491137731,0.07295689,222.87,222.51,0.18872784]
[1693491137933,0.07295689,222.87,222.49,0.18872784]
[1693491138133,0.07295689,222.87,222.48,0.07315325]
[1693491138134,0.07295689,222.87,222.5,0.18872784]
[1693491138334,0.07295689,222.87,222.49,0.18872784]
[1693491138535,0.07295689,222.87,222.5,0.18872784]
[1693491138730,0.07295689,222.87,222.49,0.26188109]
[1693491138936,0.07295689,222.87,222.5,0.18872784]
[1693491139237,0.07295689,222.87,222.51,0.18872784]
[1693491139435,0.07295689,222.87,222.5,0.18872784]
[1693491139630,0.07295689,222.87,222.51,0.18872784]
[1693491139834,0.07295689,222.87,222.25,0.97537674]
[1693491139835,0.07295689,222.92,222.54,0.07315325]
[1693491140037,0.07295689,222.92,222.55,0.26188109]
[1693491140235,0.07295689,222.92,222.56,0.18872784]
[1693491140835,0.07295689,222.93,222.56,0.18872784]
[1693491141135,0.07295689,222.93,222.57,0.18872784]
[1693491141336,0.07295689,222.93,222.55,0.18872784]
[1693491141636,0.07295689,222.93,222.56,0.18872784]
[1693491141835,0.07295689,222.93,222.55,0.18872784]
[1693491142035,0.07295689,222.94,222.56,0.18872784]
[1693491142235,0.07295689,222.94,222.54,0.18872784]
[1693491142436,0.07295689,222.94,222.55,0.18872784]
[1693491142630,0.07295689,222.94,222.56,0.18872784]
[1693491142830,0.07295689,222.93,222.57,0.18872784]
[1693491143034,0.07295689,222.94,222.58,0.18872784]
[1693491143234,0.07295689,222.94,222.53,0.18872784]
[1693491143435,0.07295689,222.94,222.54,0.18872784]
[1693491143635,0.07295689,222.94,222.53,0.18872784]
[1693491143933,0.07295689,222.94,222.54,0.18872784]
[1693491144136,0.07295689,222.94,222.53,0.18872784]
[1693491144341,0.07295689,222.94,222.54,0.18872784]
[1693491144536,0.07295689,222.94,222.53,0.26188109]
[1693491144831,0.07295689,222.95,222.54,0.18872784]
[1693491145039,0.07295689,222.97,222.53,0.26188109]
[1693491145238,0.07295689,222.97,222.54,0.18872784]